Cogmind - Beta 10.2 @@@ ROGUE MODE // 2020.12.07 @ 23:06:52 Player: aperiodic Result: Escaped! Performance ------------- Evolutions (9) 4500 Regions Visited (28) 5600 Robots Destroyed (310) 1550 Value Destroyed (9622) 9622 Prototype IDs (120) 2400 Alien Tech Used (3) 600 Bonus (11018) 11018 TOTAL SCORE: 35290 Bonus ------- High Alert Combat Kills 1872 Follower Combat Kills 885 Destroyed Z-Imprinter 1000 Met Zhirov 300 Met Warlord at Base 500 MAIN.C Attacked Warlord 500 Hacked Protovariant 500 Met Warlord at Research 2000 Invited to Help at Command 2000 Scanned by Researcher 500 Win 3000 Friendly Fire -2039 Cogmind --------- Core Integrity 1288/1600 Matter 213/300 Energy 688/700 System Corruption 6% Temperature Cool (12) Movement Flying (27) Location To Epsilon Eridani Parts ------- > --- POWER (2) -------- Vortex Chain Reactor > --- PROPULSION (6) --- Impulse Thruster Array Impulse Thruster Array Improved Q-thruster Cooled Q-thruster > --- UTILITY (15) ----- Experimental Power Amplifier Large Storage Unit Inertial Stasis Machine Inertial Stasis Machine Experimental Sensor Array Experimental Signal Interpreter Advanced Reaction Control System Improved Cloaking Device Experimental Propulsion Shielding Advanced Remote Shield Advanced Hacking Suite Advanced System Shield > --- WEAPON (2) ------- Sigix Broadsword > --- INVENTORY (10) --- Improved Fusion Compressor Experimental Heat Sink Experimental Energy Well (1000) Minesniffer Drone Bay (9/10) Null Cannon Mini Smartbomb Launcher Peak State ------------ > --- POWER ------------ Vortex Chain Reactor > --- PROPULSION ------- Impulse Thruster Array Impulse Thruster Array Improved Q-thruster Cooled Q-thruster > --- UTILITY ---------- Improved Fusion Compressor Experimental Power Amplifier Large Storage Unit Inertial Stasis Machine Inertial Stasis Machine Experimental Signal Interpreter Advanced Reaction Control System Advanced Phase Shifter Improved Cloaking Device Experimental Propulsion Shielding Powered Armor Advanced Force Field Phase Redirector Advanced Hacking Suite Advanced System Shield > --- WEAPON ----------- Sigix Broadsword > --- INVENTORY -------- Experimental Heat Sink Experimental Energy Well Experimental Sensor Array Advanced Remote Shield Minesniffer Drone Bay Null Cannon Mini Smartbomb Launcher [Rating: 215] Favorites ----------- Power Vortex Chain Reactor Engine Heavy Ion Engine Power Core Micro Nuclear Core Reactor Vortex Chain Reactor Propulsion Improved VTOL Module Treads Light Treads Wheel Wheel Hover Unit Zionite Glidesys II Flight Unit Improved VTOL Module Utility High-capacity Storage Unit Device Experimental Sensor Array Storage High-capacity Storage Unit Processor Experimental Signal Interpreter Hackware Advanced System Shield Protection Experimental Propulsion Shielding Artifact Phase Redirector Weapon Light Assault Rifle Energy Gun Small Laser Energy Cannon Null Cannon Ballistic Gun Light Assault Rifle Ballistic Cannon Mini Assault Cannon Launcher Mini Smartbomb Launcher Special Weapon Mining Laser Impact Weapon Gravity Flail Slashing Weapon Power Sword Piercing Weapon Force Lance Build | -11 -10 -10 -9 -9 -8 -7 -7 -7 -7 -7 -6 -6 -6 -5 -5 -5 -5 -4 -4 -4 -4 -4 -3 -3 -3 -2 -2 -1 ------- Run | Scr Mat Min Mat Sto Mat Fac Low Low Zio Dee Pro Fac Ext Fac Upp Upp War Pro Fac Upp Upp Zhi Pro Res Tes Res Qua Acc Slots Evolved 18 | . . . 2 . 2 2 . . . . . 2 . 2 . . . . 2 . . . . 2 . 2 . 2 Power 1 | . . . . . . 1 . . . . . . . . . . . . . . . . . . . . . . Propulsion 4 | . . . . . 1 . . . . . . 2 . . . . . . 1 . . . . . . . . . Utility 13 | . . . 2 . 1 1 . . . . . . . 2 . . . . 1 . . . . 2 . 2 . 2 Weapon . | . . . . . . . . . . . . . . . . . . . . . . . . . . . . . Parts Attached 460 | 6 22 22 31 42 46 30 1 . 2 17 2 29 14 27 1 1 15 1 21 1 . 1 1 26 17 29 9 46 Power 31 | 1 1 1 2 3 1 6 . . . 3 . 5 1 2 . . 1 . . . . . . 1 1 2 . . Engine 7 | 1 1 . 1 3 1 . . . . . . . . . . . . . . . . . . . . . . . Core 12 | . . 1 1 . . 6 . . . . . 2 . 2 . . . . . . . . . . . . . . Reactor 12 | . . . . . . . . . . 3 . 3 1 . . . 1 . . . . . . 1 1 2 . . Propulsion 89 | 2 8 14 2 10 15 6 . . . 4 . 5 3 4 . . 3 . 5 . . . . 3 2 3 . . Treads 37 | . 4 8 2 9 14 . . . . . . . . . . . . . . . . . . . . . . . Leg . | . . . . . . . . . . . . . . . . . . . . . . . . . . . . . Wheel 12 | 2 4 6 . . . . . . . . . . . . . . . . . . . . . . . . . . Hover 1 | . . . . . . . . . . 1 . . . . . . . . . . . . . . . . . . Flight 39 | . . . . 1 1 6 . . . 3 . 5 3 4 . . 3 . 5 . . . . 3 2 3 . . Utility 145 | 1 4 2 8 4 7 5 1 . 1 4 . 11 . 8 1 1 7 . 7 1 . 1 . 21 13 15 5 17 Device 89 | . . . . 1 1 3 . . . 1 . 5 . 4 1 1 6 . 5 1 . 1 . 17 13 10 4 15 Storage 12 | 1 3 2 1 . 1 1 . . . . . . . 1 . . . . . . . . . 1 . 1 . . Processor 4 | . . . . . . 1 . . . . . 1 . 1 . . 1 . . . . . . . . . . . Hackware 13 | . . . 1 . . . . . . 2 . 4 . 2 . . . . 2 . . . . 2 . . . . Protection 24 | . 1 . 6 3 5 . 1 . 1 1 . 1 . . . . . . . . . . . 1 . 4 . . Artifact 3 | . . . . . . . . . . . . . . . . . . . . . . . . . . . 1 2 Weapon 195 | 2 9 5 19 25 23 13 . . 1 6 2 8 10 13 . . 4 1 9 . . . 1 1 1 9 4 29 Energy Gun 19 | 1 4 2 4 3 4 . . . . . . . . . . . . . . . . . . . . . . 1 Energy Cannon 16 | . . . 1 . . . . . . . . . . 5 . . . . . . . . . . . 3 2 5 Ballistic Gun 45 | 1 4 3 9 12 11 3 . . . 2 . . . . . . . . . . . . . . . . . . Ballistic Cannon 22 | . . . . 5 3 5 . . . . 1 3 4 1 . . . . . . . . . . . . . . Launcher 36 | . . . 1 5 5 1 . . . 2 . . 3 . . . . . 4 . . . 1 . 1 4 . 9 Special Weapon 4 | . . . 4 . . . . . . . . . . . . . . . . . . . . . . . . . Impact Weapon 7 | . 1 . . . . 2 . . . . . . . . . . . . . . . . . 1 . 1 2 . Slashing Weapon 35 | . . . . . . 2 . . 1 2 1 5 2 6 . . 2 . . . . . . . . . . 14 Piercing Weapon 11 | . . . . . . . . . . . . . 1 1 . . 2 1 5 . . . . . . 1 . . Special Melee Weapon . | . . . . . . . . . . . . . . . . . . . . . . . . . . . . . Unidentified Prototypes 24 | . . . 1 2 2 . . . . 4 . 2 . . . . 7 . 1 . . 1 . 1 . . 1 2 Parts Lost 38 | . 5 4 2 6 4 1 . 1 . 6 . 1 1 . . . . . 1 . . . . 2 . . . 4 Power 8 | . 1 . 1 . 1 1 . . . 2 . . 1 . . . . . . . . . . 1 . . . . Propulsion 7 | . 1 1 . 2 2 . . . . 1 . . . . . . . . . . . . . . . . . . Utility 14 | . . . 1 2 1 . . 1 . 2 . 1 . . . . . . 1 . . . . 1 . . . 4 Weapon 9 | . 3 3 . 2 . . . . . 1 . . . . . . . . . . . . . . . . . . Highest Loss Streak 6 | . 2 2 1 4 2 1 . 1 . 6 . 1 1 . . . . . 1 . . . . 1 . . . 2 Average Slot Usage (%) 90 | . 93 100 99 99 98 91 92 84 84 75 77 84 83 92 94 94 89 88 82 84 84 78 80 84 89 87 86 83 Engine 3 | . 13 5 5 11 9 . . . . . . . . . . . . . . . . . . . . . . . Core 2 | . . 8 5 . . 14 15 15 15 4 . . . 7 11 11 3 . . . . . . . . . . . Reactor 2 | . . . . . . . . . . 4 7 5 6 1 . . 3 5 5 5 5 5 5 4 8 5 4 4 Treads 8 | . 8 24 22 21 26 1 . . . . . . . . . . . . . . . . . . . . . . Wheel 1 | . 19 3 . . . . . . . . . . . . . . . . . . . . . . . . . . Flight 13 | . . . . . . 21 23 23 23 22 23 31 30 29 29 29 29 29 23 21 21 21 21 18 19 17 17 16 Device 10 | . . . . 1 2 14 23 7 7 6 7 6 6 12 11 11 18 23 15 21 21 21 21 18 22 21 20 31 Storage 12 | . 20 28 22 22 24 8 7 7 7 7 7 6 6 5 5 5 5 5 5 5 5 5 5 4 4 4 4 4 Processor 3 | . . . . . . 6 7 7 7 7 7 6 6 5 5 5 5 5 5 5 5 5 5 4 4 4 4 4 Hackware 11 | . . . 5 11 9 7 7 7 7 12 23 19 20 21 23 23 15 11 18 15 15 15 15 19 19 17 16 8 Protection 4 | . 1 . 16 9 9 6 . 7 7 1 . . . . . . . . . . . . . 4 . 7 8 7 Energy Gun 1 | . 8 9 2 1 3 . . . . . . . . . . . . . . . . . . . . . . . Ballistic Gun 5 | . 19 18 16 13 10 1 . . . . . . . . . . . . . . . . . . . . . . Launcher 1 | . . . . 1 1 . . . . . . . . . . . . . 4 5 5 . 1 4 4 3 4 . Slashing Weapon 1 | . . . . . . 1 7 7 7 4 . 5 2 2 5 5 4 4 . . . . . . . . . 2 Naked Turns . | . . . . . . . . . . . . . . . . . . . . . . . . . . . . . Heaviest Build 119 | 11 56 73 85 86 119 115 26 26 27 27 21 27 24 36 31 30 65 57 71 65 65 65 65 79 72 96 109 117 Greatest Support 116 | 26 40 40 40 40 60 60 27 27 27 28 18 36 30 42 42 42 65 65 73 73 73 73 73 84 91 100 116 116 Greatest Overweight (x) 4 | . 2 3 2 4 2 3 . . . 1 1 . . . . . . . 1 . . . . . . 1 1 3 Average Overweight (x) . | . . 1 1 1 1 . . . . . . . . . . . . . . . . . . . . . . . Largest Inventory Capacity 28 | 6 18 20 20 20 28 28 8 8 8 8 8 8 8 10 10 10 10 10 10 10 10 10 10 10 10 10 10 10 Average Capacity 13 | 4 11 19 20 20 25 9 8 8 8 8 8 8 8 9 10 10 10 10 10 10 10 10 10 10 10 10 10 10 Most Carried 28 | 4 18 20 20 20 28 27 8 8 8 8 8 8 8 10 9 9 10 10 10 8 8 10 10 10 10 10 10 10 Average Carried 12 | 3 9 19 19 19 24 9 8 8 8 7 7 7 7 8 9 9 9 10 8 8 8 9 9 9 9 9 9 7 Final Capacity 28 | 6 18 20 20 20 28 8 8 8 8 8 8 8 8 10 10 10 10 10 10 10 10 10 10 10 10 10 10 10 Final Carried 27 | 4 18 20 20 20 27 8 8 8 8 8 8 8 8 9 9 9 10 10 9 8 8 10 9 8 10 10 10 6 Class Distribution -------------------- 46% | Hacker-Sprinter 23% | Hauler-Mutant 8% | Mutant 8% | Sprinter 6% | Scavenger-Mutant Dominant Class ---------------- Mutant | -10/Materials Hauler-Mutant | -10/Mines Scavenger-Mutant | -9/Materials Hauler-Mutant | -9/Storage Hauler-Mutant | -8/Materials Sprinter | -7/Factory Sprinter | -7/Lower Caves Sprinter | -7/Lower Caves Sprinter | -7/Zion Scavenger-Mutant | -7/Deep Caves Hacker-Sprinter | -6/Proximity Caves Hacker-Sprinter | -6/Factory Hacker-Sprinter | -6/Extension Hacker-Sprinter | -5/Factory Hacker-Sprinter | -5/Upper Caves Hacker-Sprinter | -5/Upper Caves Hacker-Sprinter | -5/Warlord Hacker-Sprinter | -4/Proximity Caves Hacker-Sprinter | -4/Factory Hacker-Sprinter | -4/Upper Caves Hacker-Sprinter | -4/Upper Caves Hacker-Sprinter | -4/Zhirov Hacker-Sprinter | -3/Proximity Caves Hacker-Sprinter | -3/Research Hacker-Sprinter | -3/Testing Hacker-Sprinter | -2/Research Hacker-Sprinter | -2/Quarantine Hacker-Sprinter | -1/Access Resources | -11 -10 -10 -9 -9 -8 -7 -7 -7 -7 -7 -6 -6 -6 -5 -5 -5 -5 -4 -4 -4 -4 -4 -3 -3 -3 -2 -2 -1 ----------- Run | Scr Mat Min Mat Sto Mat Fac Low Low Zio Dee Pro Fac Ext Fac Upp Upp War Pro Fac Upp Upp Zhi Pro Res Tes Res Qua Acc Matter Collected 9951 | 204 365 265 455 1176 1366 557 79 52 28 201 10 460 542 323 11 17 . 163 247 234 186 20 36 589 272 910 20 1163 Remotely . | . . . . . . . . . . . . . . . . . . . . . . . . . . . . . Salvage Created 11716 | . 711 296 409 1549 1750 383 . . . 238 . 409 919 337 . . . 247 344 305 158 98 26 811 255 644 . 1827 Parts 581 | . 42 18 32 100 124 19 . . . 18 . 16 43 14 . . . 1 27 11 4 2 2 22 3 21 . 62 Haulers Intercepted 27 | . 1 . 3 5 5 5 . . . . . 1 2 2 . . . . 1 . . . . 2 . . . . Recyclers Shooed 10 | . 2 . 1 . 3 1 . . . . . 1 2 . . . . . . . . . . . . . . . Parts Field Recycled . | . . . . . . . . . . . . . . . . . . . . . . . . . . . . . Retrieved Matter . | . . . . . . . . . . . . . . . . . . . . . . . . . . . . . Parts Self-Destructed 24 | . . . . . . . . . . . . . . . 2 . 16 1 . 2 1 2 . . . . . . Prevented 7 | . . . . . . . . . . . . . . . . . 7 . . . . . . . . . . . Kills | -11 -10 -10 -9 -9 -8 -7 -7 -7 -7 -7 -6 -6 -6 -5 -5 -5 -5 -4 -4 -4 -4 -4 -3 -3 -3 -2 -2 -1 ------- Run | Scr Mat Min Mat Sto Mat Fac Low Low Zio Dee Pro Fac Ext Fac Upp Upp War Pro Fac Upp Upp Zhi Pro Res Tes Res Qua Acc Combat Hostiles Destroyed 187 | . 11 12 10 32 39 . . . . 4 . . 11 1 . . . . 9 6 1 . 2 . . 18 . 31 Melee 13 | . . . . . . . . . . 1 . . 3 1 . . . . 2 . . . . . . . . 6 Guns 66 | . 9 12 10 17 17 . . . . 1 . . . . . . . . . . . . . . . . . . Cannons 12 | . . . . 6 4 . . . . . . . 1 . . . . . . . . . . . . 1 . . AOE 95 | . 2 . . 9 18 . . . . 2 . . 7 . . . . . 7 6 1 . 2 . . 16 . 25 Classes Destroyed 25 | . 7 . 2 5 2 . . . . 2 . . . . . . . . 1 1 1 . . . 1 2 . 1 Worker 25 | . 2 . . 3 4 . . . . . . 3 2 1 . . . . . . . . . 7 1 1 . 1 Builder 13 | . . . . 3 3 . . . . . . . 2 . . . . . . . . . . 1 . . . 4 Tunneler 10 | . . . . . 1 . . . . . . 2 . 1 . . . . 3 . . . . 2 . 1 . . Hauler 27 | . 1 . 3 5 5 5 . . . . . 1 2 2 . . . . 1 . . . . 2 . . . . Recycler 21 | . 2 . . 1 2 2 . . . . . 1 2 . . . . . . . . . . 2 1 . . 8 Mechanic 1 | . . . 1 . . . . . . . . . . . . . . . . . . . . . . . . . Operator 6 | . 1 . . 1 1 . . . . . . . . . . . . . . . . . . 1 . 1 1 . Drone 12 | . . . . 3 . . . . . . . . . . . . . . . . . . . 1 . . . 8 Watcher 26 | . 3 . . 2 3 . . . . . . 2 2 1 . . . . . . . . . 8 1 3 . 1 Swarmer 54 | . 3 9 7 3 11 . . . . . . . 1 . . . . . 5 1 . . 2 . . 8 . 4 Saboteur 2 | . . . . . . . . . . . . . . . . . . . . . . . . . . . . 2 Grunt 66 | . 8 3 1 16 16 . . . . . . . 7 . . . . . . 5 . . . . . 3 . 7 Brawler 4 | . . . . 1 1 . . . . . . . . . . . . . . . . . . . . . . 2 Duelist 6 | . . . . 2 1 . . . . . . . 1 . . . . . . . . . . . . . . 2 Protector 2 | . . . . 1 1 . . . . . . . . . . . . . . . . . . . . . . . Researcher 2 | . . . . . . . . . . . . . . . . . . . . . . . . . 1 . 1 . Sentry 24 | . . . 2 9 8 . . . . . . . 1 1 . . . . 1 . 1 . . . . 1 . . Hunter 2 | . . . . . 1 . . . . . . . 1 . . . . . . . . . . . . . . . Programmer 10 | . . . . . . . . . . . . . . . . . . . 3 . . . . . . 1 . 6 Behemoth 1 | . . . . . . . . . . . . . . . . . . . . . . . . . . 1 . . Striker 4 | . . . . . . . . . . . . . . . . . . . . . . . . . . 4 . . Z-Technician 5 | . . . . . . . . . . 5 . . . . . . . . . . . . . . . . . . Z-Light 2 | . . . . . . . . . . 2 . . . . . . . . . . . . . . . . . . Samaritan 5 | . . . . . . . . . . . . . . . . . . . . 2 3 . . . . . . . Tinkerer 1 | . . . . . . . . . . . . . . . . . . . . . 1 . . . . . . . Assembled 1 | . . . . . . . . . . 1 . . . . . . . . . . . . . . . . . . Best Kill Streak 11 | . 4 3 3 11 8 2 . . . 4 . 3 7 1 . . . . 5 6 1 . 2 4 2 6 1 7 Combat Bots Only 10 | . 3 3 3 10 8 . . . . 3 . . 5 1 . . . . 5 6 1 . 2 . . 5 . 5 Max Kills in Single Turn 4 | . 3 2 1 3 3 1 . . . 2 . 1 2 1 . . . . 4 2 1 . 1 1 1 3 1 4 Gunslinging 1 | . . 1 . . . . . . . . . . . . . . . . . . . . . . . . . . Exploded 4 | . 2 . . 2 3 . . . . 2 . . 1 . . . . . 4 2 1 . 1 . . 3 . 3 Melee 1 | . . . . . . . . . . 1 . . 1 1 . . . . 1 . . . . . . . . 1 Uniques/NPCs Destroyed 2 | . . . . . . . . . . 1 . . 1 . . . . . . . . . . . . . . . Z-Imprinter (-7/Deep Caves) A7 (-6/Extension) Combat | -11 -10 -10 -9 -9 -8 -7 -7 -7 -7 -7 -6 -6 -6 -5 -5 -5 -5 -4 -4 -4 -4 -4 -3 -3 -3 -2 -2 -1 -------- Run | Scr Mat Min Mat Sto Mat Fac Low Low Zio Dee Pro Fac Ext Fac Upp Upp War Pro Fac Upp Upp Zhi Pro Res Tes Res Qua Acc Damage Taken 10010 | . 704 614 868 1597 1643 412 . 81 . 1067 . 53 535 140 . . . . 404 22 . . 20 195 30 86 307 1232 Core 2025 | . 119 82 85 247 181 89 . 38 . 475 . . 189 41 . . . . 43 . . . 10 22 12 . 80 312 Absorbed by Shields 1128 | . . . . 12 144 . . . . . . . 179 . . . . . . . . . . . 30 91 171 501 Redirected to Core 211 | . . . . . . . . . . . . . . . . . . . . . . . . . . . 35 176 Core Remaining (%) 68 | 100 . 19 . 17 67 . . . . . 14 . 77 . . . . 95 . . . . 95 . 97 . 94 80 Volleys Fired 755 | . 78 40 80 120 126 72 . . . 7 1 24 57 26 . . . . 10 7 6 . 4 17 1 35 9 35 Largest 2 | . 2 2 2 2 2 2 . . . 1 1 1 1 1 . . . . 1 1 1 . 1 1 1 1 1 1 Hottest 130 | . 60 60 100 93 86 56 . . . 30 48 48 48 98 . . . . 80 80 80 . 80 80 80 130 130 130 Shots Fired 1094 | . 152 80 141 207 201 74 . . . 7 1 24 57 26 . . . . 10 7 6 . 4 17 1 35 9 35 Gun 647 | . 152 80 118 134 140 19 . . . 4 . . . . . . . . . . . . . . . . . . Cannon 267 | . . . 4 62 46 55 . . . . 1 24 35 26 . . . . . . . . . . . 4 2 8 Launcher 162 | . . . 1 11 15 . . . . 3 . . 22 . . . . . 10 7 6 . 4 17 1 31 7 27 Special 18 | . . . 18 . . . . . . . . . . . . . . . . . . . . . . . . . Kinetic 753 | . 114 65 110 159 161 74 . . . 4 1 24 35 6 . . . . . . . . . . . . . . Thermal 85 | . 14 15 22 . . . . . . . . . . 20 . . . . . . . . . . . 4 2 8 Explosive 162 | . . . 1 11 15 . . . . 3 . . 22 . . . . . 10 7 6 . 4 17 1 31 7 27 Electromagnetic 94 | . 24 . 8 37 25 . . . . . . . . . . . . . . . . . . . . . . . Robot Hit Streak 36 | . 36 12 13 25 13 7 . . . 2 . . 11 . . . . . . 3 . . 4 . . 10 . 18 Robot Miss Streak 6 | . 4 3 3 4 3 6 . . . 3 . . 5 . . . . . . . . . . . . . . . Penetration Max 1 | . . . . . 1 1 . . . . . . . . . . . . . . . . . . . . . . Secondary Targets 4 | . . 2 . 2 . . . . . . . . . . . . . . . . . . . . . . . . Max Gunslinging Chain 1 | . . 1 . 1 . . . . . . . . . . . . . . . . . . . . . . . . Shots Hit Robots 777 | . 110 63 88 119 141 33 . . . 15 . 22 47 14 . . . 7 21 4 5 4 1 31 5 17 . 30 Core Hits 540 | . 44 22 23 67 90 7 . . . 13 . 10 59 7 . . . 3 16 16 6 1 5 18 1 46 4 82 Critical Hits 17 | . . . 1 2 3 1 . . . . . . . . . . . . . 1 1 . . 1 . . . 7 Critical Kills 8 | . . . . 2 2 . . . . . . . . . . . . . . . 1 . . 1 . . . 2 Critical Parts Destroyed 9 | . . . 1 . 1 1 . . . . . . . . . . . . . 1 . . . . . . . 5 Melee Attacks 518 | . 4 . . . . 25 . . . 22 2 45 26 48 . . 1 8 68 4 5 4 1 107 26 23 6 93 Impact 138 | . 4 . . . . 15 . . . . . . . . . . . . . . . . . 64 26 23 6 . Slashing 237 | . . . . . . 10 . . . 22 2 45 23 34 . . . 8 . . . . . . . . . 93 Piercing 131 | . . . . . . . . . . . . . 3 14 . . . . 57 4 5 4 1 43 . . . . Entropic 12 | . . . . . . . . . . . . . . . . . 1 . 11 . . . . . . . . . Sneak Attacks 70 | . . . . . . 4 . . . 7 . 9 9 6 . . . . 4 3 5 . . 12 4 2 . 5 Combat Hostiles 3 | . . . . . . . . . . 1 . . 2 . . . . . . . . . . . . . . . Follow-up Attacks . | . . . . . . . . . . . . . . . . . . . . . . . . . . . . . Damage Inflicted 45008 | . 1220 525 834 2950 4443 1232 . . . 1494 . 1670 4407 1140 . . . 735 2530 1434 1023 535 480 3448 694 4555 564 9095 Guns 5983 | . 1032 525 728 1377 1953 281 . . . 87 . . . . . . . . . . . . . . . . . . Cannons 3037 | . . . 82 773 793 254 . . . . . . 848 . . . . . . . . . . . . 287 . . Explosions 19076 | . 188 . . 800 1697 . . . . 185 . . 2292 . . . . . 737 1045 197 . 480 569 . 3752 564 6570 Melee 16888 | . . . . . . 697 . . . 1222 . 1670 1267 1140 . . . 735 1793 389 826 535 . 2879 694 516 . 2525 Ramming . | . . . . . . . . . . . . . . . . . . . . . . . . . . . . . Kinetic 7133 | . 696 377 638 1724 2228 535 . . . 87 . . 848 . . . . . . . . . . . . . . . Thermal 981 | . 285 148 106 20 135 . . . . . . . . . . . . . . . . . . . . 287 . . Explosive 18733 | . . . . 780 1562 . . . . 185 . . 2292 . . . . . 737 1045 197 . 480 569 . 3752 564 6570 Electromagnetic 1273 | . 239 . 90 426 518 . . . . . . . . . . . . . . . . . . . . . . . Impact 3334 | . . . . . . 304 . . . . . . . . . . . . . . . . . 1820 694 516 . . Slashing 8686 | . . . . . . 393 . . . 1222 . 1670 1091 1050 . . . 735 . . . . . . . . . 2525 Piercing 4085 | . . . . . . . . . . . . . 176 90 . . . . 1010 389 826 535 . 1059 . . . . Entropic 783 | . . . . . . . . . . . . . . . . . . . 783 . . . . . . . . . Highest Corruption 6 | . 2 2 . 3 . 2 2 1 1 . . 1 1 . . . . . 3 3 3 3 3 . . . 2 6 Average Corruption 1 | . 2 2 . 1 . 1 1 1 1 . . 1 1 . . . . . 2 3 3 3 3 . . . 1 2 Corruption Purged 1 | . . . . . . . 1 . . . . . . . . . . . . . . . . . . . . . Effects 71 | . 6 12 . 5 . 1 . . . . . 7 4 . . . . . 9 2 2 1 3 . . . . 19 Message Errors 31 | . 2 8 . 2 . 1 . . . . . 4 4 . . . . . 2 1 . 1 1 . . . . 5 Matter Fused 11 | . . . . 1 . . . . . . . . . . . . . . 2 1 1 . 1 . . . . 5 Heat Flow Errors 4 | . . . . . . . . . . . . . . . . . . . 1 . . . 1 . . . . 2 Energy Discharges 7 | . . 1 . 1 . . . . . . . . . . . . . . 2 . . . . . . . . 3 Data Loss (minor) 7 | . 2 . . 1 . . . . . . . 2 . . . . . . . . 1 . . . . . . 1 Targeting Errors 10 | . 1 3 . . . . . . . . . 1 . . . . . . 2 . . . . . . . . 3 Weapon Failures 1 | . 1 . . . . . . . . . . . . . . . . . . . . . . . . . . . Overload Shots . | . . . . . . . . . . . . . . . . . . . . . . . . . . . . . Overflow Damage 4625 | . . . . 42 25 115 . . . 360 . 480 331 162 . . . 187 309 9 287 6 79 941 341 269 117 565 Projectiles 100 | . . . . . 4 14 . . . . . . 37 . . . . . . . . . . . . 45 . . Explosions 851 | . . . . 42 21 . . . . . . . 98 . . . . . 59 9 . . 79 60 . 121 117 245 Melee 3674 | . . . . . . 101 . . . 360 . 480 196 162 . . . 187 250 . 287 6 . 881 341 103 . 320 Knockbacks 44 | . . . . 6 6 8 . . . . . . 8 . . . . . . . . . . 13 2 1 . . Impact 19 | . . . . . . 3 . . . . . . . . . . . . . . . . . 13 2 1 . . Kinetic 25 | . . . . 6 6 5 . . . . . . 8 . . . . . . . . . . . . . . . Secondary . | . . . . . . . . . . . . . . . . . . . . . . . . . . . . . Self-Inflicted Damage 616 | . . . . 107 163 . . . . 9 . . 41 . . . . . . . . . 21 79 38 . 120 38 Shots 19 | . . . . 4 4 . . . . 1 . . 1 . . . . . . . . . 1 1 1 . 5 1 Rammed . | . . . . . . . . . . . . . . . . . . . . . . . . . . . . . Targets Rammed . | . . . . . . . . . . . . . . . . . . . . . . . . . . . . . Kicked . | . . . . . . . . . . . . . . . . . . . . . . . . . . . . . Crushed . | . . . . . . . . . . . . . . . . . . . . . . . . . . . . . Highest Temperature 479 | . 213 132 302 187 479 150 . 3 . 19 . 316 384 256 . . . . 199 136 180 . 195 112 46 230 4 262 Average Temperature 59 | . 51 53 60 45 50 56 . 3 . 8 . 44 78 77 . . . . 35 87 88 . 67 38 9 75 3 56 Received Heat Transfer 2355 | . 351 219 156 508 430 36 . 9 . 297 . 18 178 18 . . . . 45 . . . . 30 . 4 . 56 Effects 9 | . . . 1 . 2 . . . . . . . 1 3 . . . . . . . . . . . . . 2 Shutdowns 1 | . . . . . 1 . . . . . . . . . . . . . . . . . . . . . . . Interference 6 | . . . 1 . . . . . . . . . . 3 . . . . . . . . . . . . . 2 Matter Decay 1 | . . . . . 1 . . . . . . . . . . . . . . . . . . . . . . . Short Circuit 1 | . . . . . . . . . . . . . 1 . . . . . . . . . . . . . . . Siege Activations . | . . . . . . . . . . . . . . . . . . . . . . . . . . . . . Robots Corrupted 1 | . 1 . . . . . . . . . . . . . . . . . . . . . . . . . . . Combat Hostiles . | . . . . . . . . . . . . . . . . . . . . . . . . . . . . . Parts Fried 40 | . 4 . . 4 . . . . . . . . . . . . . . . . . . . 20 5 7 . . Impact Corruptions 43 | . . . . . . 4 . . . . . . . . . . . . . . . . . 28 7 4 . . Robots Melted . | . . . . . . . . . . . . . . . . . . . . . . . . . . . . . Combat Hostiles . | . . . . . . . . . . . . . . . . . . . . . . . . . . . . . Parts Melted 3 | . 1 . . 1 . . . . . . . . . . . . . . . . . . . . . 1 . . Heat Transferred 1373 | . 475 350 198 50 150 . . . . . . . . . . . . . . . . . . . . 150 . . Parts Sabotaged . | . . . . . . . . . . . . . . . . . . . . . . . . . . . . . Parts Stolen . | . . . . . . . . . . . . . . . . . . . . . . . . . . . . . Parts Stripped . | . . . . . . . . . . . . . . . . . . . . . . . . . . . . . Power Chain Reactions 6 | . 2 . . 1 3 . . . . . . . . . . . . . . . . . . . . . . . Missiles Intercepted . | . . . . . . . . . . . . . . . . . . . . . . . . . . . . . Alert | -11 -10 -10 -9 -9 -8 -7 -7 -7 -7 -7 -6 -6 -6 -5 -5 -5 -5 -4 -4 -4 -4 -4 -3 -3 -3 -2 -2 -1 ------- Run | Scr Mat Min Mat Sto Mat Fac Low Low Zio Dee Pro Fac Ext Fac Upp Upp War Pro Fac Upp Upp Zhi Pro Res Tes Res Qua Acc Peak Influence 2212 | . 199 254 178 727 714 830 . . . . . 365 853 662 . . . . 753 . . . . 683 383 1035 704 2212 Initial 534 | . . 69 27 1 235 324 . . . . . . 45 53 . . . . . . . . . 43 276 108 534 252 Average 347 | . 84 79 58 501 328 426 . . . . . 133 346 89 . . . . 238 . . . . 397 153 666 549 934 Maximum Alert Level 5 | . . 1 . 3 3 3 . . . . . 1 3 2 . . . . 3 . . . . 2 1 3 3 5 Low Security (%) 43 | 100 100 85 100 4 20 . . . . . . 76 37 95 . . . . 56 . . . . 16 76 10 . . Level 1 21 | . . 14 . 17 56 58 . . . . . 23 18 1 . . . . 22 . . . . 24 23 6 . 20 Level 2 25 | . . . . 77 22 38 . . . . . . 30 2 . . . . 9 . . . . 59 . 42 99 27 Level 3 6 | . . . . . . 3 . . . . . . 12 . . . . . 10 . . . . . . 40 . 18 Level 4 1 | . . . . . . . . . . . . . . . . . . . . . . . . . . . . 11 Level 5 1 | . . . . . . . . . . . . . . . . . . . . . . . . . . . . 22 High Security . | . . . . . . . . . . . . . . . . . . . . . . . . . . . . . Max Security . | . . . . . . . . . . . . . . . . . . . . . . . . . . . . . Squads Dispatched 74 | . 3 . . 9 6 9 . . . . . 3 3 4 . . . . 6 . . . . 5 4 1 8 13 Investigation 21 | . 2 . . 2 4 4 . . . . . 1 . 1 . . . . 5 . . . . 2 . . . . Extermination 13 | . . . . . . 2 . . . . . 1 . 1 . . . . 1 . . . . 1 2 . 1 4 Reinforcement 23 | . 1 . . 5 1 2 . . . . . 1 2 2 . . . . . . . . . . 1 1 4 3 Assault 13 | . . . . 2 1 . . . . . . . 1 . . . . . . . . . . 2 1 . . 6 Garrison 4 | . . . . . . 1 . . . . . . . . . . . . . . . . . . . . 3 . Intercept . | . . . . . . . . . . . . . . . . . . . . . . . . . . . . . Construction Impeded 5 | . . . . 1 . . . . . . . . 2 . . . . . . . . . . . . . . 2 Haulers Reinforced 2 | . . . . . . . . . . . . . . 1 . . . . . . . . . . . 1 . . Stealth | -11 -10 -10 -9 -9 -8 -7 -7 -7 -7 -7 -6 -6 -6 -5 -5 -5 -5 -4 -4 -4 -4 -4 -3 -3 -3 -2 -2 -1 --------- Run | Scr Mat Min Mat Sto Mat Fac Low Low Zio Dee Pro Fac Ext Fac Upp Upp War Pro Fac Upp Upp Zhi Pro Res Tes Res Qua Acc Distress Signals 48 | . 1 . . 3 4 3 . . . . . 3 3 4 . . . . 4 . . . . 4 3 10 2 4 Communications Jammed . | . . . . . . . . . . . . . . . . . . . . . . . . . . . . . Distress Signals . | . . . . . . . . . . . . . . . . . . . . . . . . . . . . . Times Spotted 483 | . 19 13 16 44 61 34 2 10 . 9 4 31 38 26 . . . . 15 2 1 . 1 29 17 28 11 72 Peak Tracking Total 15 | . 5 3 4 9 6 8 4 8 . 3 4 9 9 8 . . . . 4 3 5 . 2 8 6 9 8 15 Tactical Retreats 91 | . . 1 4 2 . 9 2 5 . . . 9 7 8 . . . . 3 . 2 . 1 6 6 8 . 18 Traps | -11 -10 -10 -9 -9 -8 -7 -7 -7 -7 -7 -6 -6 -6 -5 -5 -5 -5 -4 -4 -4 -4 -4 -3 -3 -3 -2 -2 -1 ------- Run | Scr Mat Min Mat Sto Mat Fac Low Low Zio Dee Pro Fac Ext Fac Upp Upp War Pro Fac Upp Upp Zhi Pro Res Tes Res Qua Acc Traps Triggered 11 | . 2 . . 5 1 . . . . . . . . 1 . . . . . . . . . 1 . 1 . . Indirectly . | . . . . . . . . . . . . . . . . . . . . . . . . . . . . . Trap Hack Attempts . | . . . . . . . . . . . . . . . . . . . . . . . . . . . . . Triggered . | . . . . . . . . . . . . . . . . . . . . . . . . . . . . . Disarmed . | . . . . . . . . . . . . . . . . . . . . . . . . . . . . . Reprogrammed . | . . . . . . . . . . . . . . . . . . . . . . . . . . . . . Reused . | . . . . . . . . . . . . . . . . . . . . . . . . . . . . . Traps Extracted . | . . . . . . . . . . . . . . . . . . . . . . . . . . . . . Installed . | . . . . . . . . . . . . . . . . . . . . . . . . . . . . . Triggered 9 | . . . . . . 1 . . . . . . . . . . 8 . . . . . . . . . . . Machines | -11 -10 -10 -9 -9 -8 -7 -7 -7 -7 -7 -6 -6 -6 -5 -5 -5 -5 -4 -4 -4 -4 -4 -3 -3 -3 -2 -2 -1 ---------- Run | Scr Mat Min Mat Sto Mat Fac Low Low Zio Dee Pro Fac Ext Fac Upp Upp War Pro Fac Upp Upp Zhi Pro Res Tes Res Qua Acc Machines Disabled 35 | . 1 . . 2 5 . . . . 1 . 1 4 . . . 1 . 2 . . . . 3 2 4 2 7 Max in Single Turn 2 | . 1 . . 1 1 . . . . 1 . 1 1 . . . 1 . 1 . . . . 2 1 1 1 2 Garrison Access 18 | . . . . 1 1 1 . . . . . 2 . 3 . . . . 1 . . . . 3 1 3 . 2 Machines Sabotaged . | . . . . . . . . . . . . . . . . . . . . . . . . . . . . . Garrisons Compromised . | . . . . . . . . . . . . . . . . . . . . . . . . . . . . . Overloaded Fab Kills . | . . . . . . . . . . . . . . . . . . . . . . . . . . . . . Fab Network Shutdowns 2 | . . . . . . . . . . . . . . 1 . . . . 1 . . . . . . . . . Hacking | -11 -10 -10 -9 -9 -8 -7 -7 -7 -7 -7 -6 -6 -6 -5 -5 -5 -5 -4 -4 -4 -4 -4 -3 -3 -3 -2 -2 -1 --------- Run | Scr Mat Min Mat Sto Mat Fac Low Low Zio Dee Pro Fac Ext Fac Upp Upp War Pro Fac Upp Upp Zhi Pro Res Tes Res Qua Acc Machines Accessed 171 | . 7 . 6 8 15 9 . . 1 . . 22 12 21 1 . 5 . 14 1 1 5 . 15 12 3 5 8 Terminals 117 | . 6 . 6 6 11 6 . . . . . 16 11 13 1 . . . 9 . . . . 12 10 . 4 6 Fabricators 8 | . . . . . . . . . . . . 2 . 3 . . . . 2 . . . . . 1 . . . Repair Stations 8 | . . . . 1 1 . . . . . . 1 1 2 . . . . 1 . . . . . . . 1 . Recycling Units 1 | . 1 . . . . . . . . . . . . . . . . . . . . . . . . . . . Scanalyzers 6 | . . . . . 2 2 . . . . . 1 . . . . . . 1 . . . . . . . . . Garrison Access 18 | . . . . 1 1 1 . . . . . 2 . 3 . . . . 1 . . . . 3 1 3 . 2 Total Hacks 631 | . 19 . 20 19 66 20 . . 3 . . 74 41 85 1 . 15 . 83 6 1 18 . 67 49 5 21 18 Successful 449 | . 11 . 10 11 52 14 . . 3 . . 55 32 66 1 . 15 . 52 6 1 18 . 45 34 3 14 6 Failed 180 | . 8 . 10 8 14 6 . . . . . 19 9 18 . . . . 30 . . . . 22 15 2 7 12 Catastrophic 14 | . 1 . 1 1 2 . . . . . . 1 . 1 . . . . 2 . . . . 2 . . 1 2 Database Lockouts 2 | . . . . . . . . . . . . . . 1 . . . . 1 . . . . . . . . . Manual 305 | . 14 . 13 9 27 14 . . 4 . . 44 18 41 . . . . 45 . . . . 37 22 . 8 9 Terminals 479 | . 18 . 20 14 46 16 . . . . . 61 35 67 1 . . . 61 . . . . 64 42 . 19 15 Fabricators 31 | . . . . . . . . . . . . 5 . 9 . . . . 13 . . . . . 4 . . . Repair Stations 20 | . . . . 2 2 . . . . . . 1 6 5 . . . . 2 . . . . . . . 2 . Recycling Units 1 | . 1 . . . . . . . . . . . . . . . . . . . . . . . . . . . Scanalyzers 23 | . . . . . 16 2 . . . . . 2 . . . . . . 3 . . . . . . . . . Garrison Access 34 | . . . . 3 2 2 . . . . . 5 . 4 . . . . 4 . . . . 3 3 5 . 3 Terminal Hacks 229 | . 6 . 5 6 21 2 . . 3 . . 23 17 33 1 . 15 . 23 6 1 18 . 23 15 . 9 2 Record 22 | . . . . . . . . . . . . . . 1 1 . 8 . . 6 . 6 . . . . . . Part Schematic 22 | . . . . . . . . . 3 . . 2 . 3 . . . . 6 . . 4 . 4 . . . . Robot Analysis 9 | . 1 . . . 1 1 . . . . . 1 . 1 . . . . . . . 4 . . . . . . Prototype ID Bank 44 | . 2 . . 1 4 . . . . . . 6 2 7 . . 5 . 6 . . 4 . 5 2 . . . Open Door 11 | . . . . 4 . . . . . . . 1 3 . . . 2 . . . 1 . . . . . . . Level Access Points 1 | . . . . . 1 . . . . . . . . . . . . . . . . . . . . . . . Branch Access Points 7 | . . . 1 . 1 1 . . . . . 1 . 1 . . . . 1 . . . . 1 . . . . Machine Index 6 | . . . . . . . . . . . . 1 . . . . . . 1 . . . . 1 1 . 1 1 Terminal Index 3 | . 1 . . . 1 . . . . . . . . 1 . . . . . . . . . . . . . . Fabricator Index 2 | . . . . . . . . . . . . . . 1 . . . . 1 . . . . . . . . . Repair Station Index 2 | . . . . . . . . . . . . . . 1 . . . . . . . . . 1 . . . . Scanalyzer Index 1 | . . . . . . . . . . . . . . 1 . . . . . . . . . . . . . . Garrison Index 1 | . . . . . . . . . . . . . . 1 . . . . . . . . . . . . . . Alert Level 8 | . . . 1 . 1 . . . . . . 1 2 1 . . . . . . . . . 1 1 . . . Unreport Threat 22 | . . . 1 1 4 . . . . . . 2 4 2 . . . . 1 . . . . 2 3 . 2 . Locate Traps 19 | . 1 . 1 . 3 . . . . . . 2 1 4 . . . . 1 . . . . 3 1 . 1 1 Transport Status 2 | . . . . . 2 . . . . . . . . . . . . . . . . . . . . . . . Recall Investigation 1 | . . . . . 1 . . . . . . . . . . . . . . . . . . . . . . . Recall Extermination 4 | . . . . . . . . . . . . 1 . 1 . . . . . . . . . 1 1 . . . Recall Reinforcements 3 | . . . . . . . . . . . . . . . . . . . 1 . . . . . . . 2 . Recall Assault 3 | . . . . . . . . . . . . . 1 . . . . . . . . . . 1 . . 1 . Hauler Manifests 9 | . 1 . 1 . 1 . . . . . . 1 1 1 . . . . 1 . . . . 1 . . 1 . Registered Components 1 | . . . . . . . . . . . . . 1 . . . . . . . . . . . . . . . Registered Prototypes 2 | . . . . . . . . . . . . . . 1 . . . . . . . . . . 1 . . . Zone Layout 23 | . . . . . 1 . . . . . . 4 2 5 . . . . 4 . . . . 2 4 . 1 . Protovariant Controls 1 | . . . . . . . . . . . . . . . . . . . . . . . . . 1 . . . Fabricator Hacks 18 | . . . . . . . . . . . . 2 . 7 . . . . 6 . . . . . 3 . . . Load Schematic 8 | . . . . . . . . . . . . 1 . 3 . . . . 3 . . . . . 1 . . . Build 10 | . . . . . . . . . . . . 1 . 4 . . . . 3 . . . . . 2 . . . Repair Station Hacks 16 | . . . . 2 2 . . . . . . . 6 4 . . . . 2 . . . . . . . . . Scan Component 8 | . . . . 1 1 . . . . . . . 3 2 . . . . 1 . . . . . . . . . Repair 8 | . . . . 1 1 . . . . . . . 3 2 . . . . 1 . . . . . . . . . Recycling Unit Hacks . | . . . . . . . . . . . . . . . . . . . . . . . . . . . . . Scanalyzer 19 | . . . . . 15 . . . . . . 2 . . . . . . 2 . . . . . . . . . Insert Component 9 | . . . . . 7 . . . . . . 1 . . . . . . 1 . . . . . . . . . Analyze 10 | . . . . . 8 . . . . . . 1 . . . . . . 1 . . . . . . . . . Garrison Access Hacks 14 | . . . . . . . . . . . . 2 . 3 . . . . 1 . . . . 3 1 3 . 1 Seal Access 14 | . . . . . . . . . . . . 2 . 3 . . . . 1 . . . . 3 1 3 . 1 Unauthorized Hacks 153 | . 5 . 5 3 14 12 . . . . . 26 9 19 . . . . 18 . . . . 19 15 . 5 3 Terminals 139 | . 4 . 5 2 12 9 . . . . . 23 9 18 . . . . 15 . . . . 19 15 . 5 3 Track 67 | . 1 . 3 1 7 4 . . . . . 11 5 10 . . . . 7 . . . . 7 8 . 2 1 Assimilate 23 | . . . . . 1 3 . . . . . 4 2 2 . . . . 2 . . . . 5 2 . 1 1 Botnet 39 | . 2 . 1 1 3 2 . . . . . 7 2 5 . . . . 5 . . . . 6 2 . 2 1 Disrupt 2 | . . . . . . . . . . . . . . . . . . . . . . . . . 2 . . . Operators 8 | . 1 . 1 . 1 . . . . . . 1 . 1 . . . . 1 . . . . 1 1 . . . Fabricators 6 | . . . . . . . . . . . . 3 . 1 . . . . 2 . . . . . . . . . Report 1 | . . . . . . . . . . . . 1 . . . . . . . . . . . . . . . . Siphon 4 | . . . . . . . . . . . . 1 . 1 . . . . 2 . . . . . . . . . Haulers 1 | . . . . . . . . . . . . 1 . . . . . . . . . . . . . . . . Repair Stations . | . . . . . . . . . . . . . . . . . . . . . . . . . . . . . Recycling Units 1 | . 1 . . . . . . . . . . . . . . . . . . . . . . . . . . . Tunnel 1 | . 1 . . . . . . . . . . . . . . . . . . . . . . . . . . . Scanalyzers 4 | . . . . . 1 2 . . . . . . . . . . . . 1 . . . . . . . . . Extract 4 | . . . . . 1 2 . . . . . . . . . . . . 1 . . . . . . . . . Garrison Access 3 | . . . . 1 1 1 . . . . . . . . . . . . . . . . . . . . . . Jam 3 | . . . . 1 1 1 . . . . . . . . . . . . . . . . . . . . . . Data Cores Recovered 1 | . . . . . . . . . . . . . 1 . . . . . . . . . . . . . . . Used 1 | . . . . . . . . . . . . . 1 . . . . . . . . . . . . . . . Hacking Detections 114 | . 6 . 6 4 12 7 . . . . . 17 9 13 . . . . 11 . . . . 11 8 1 3 6 Full Trace Events 10 | . . . . 1 1 1 . . . . . 1 . . . . . . 4 . . . . 2 . . . . Feedback Events 3 | . . . . 1 . . . . . . . 1 . . . . . . 1 . . . . . . . . . Corruption 1 | . . . . 1 . . . . . . . . . . . . . . . . . . . . . . . . Hackware Fried 2 | . . . . . . . . . . . . 1 . . . . . . 1 . . . . . . . . . Feedback Blocked . | . . . . . . . . . . . . . . . . . . . . . . . . . . . . . Robot Schematics Acquired . | . . . . . . . . . . . . . . . . . . . . . . . . . . . . . Robots Built . | . . . . . . . . . . . . . . . . . . . . . . . . . . . . . Matter . | . . . . . . . . . . . . . . . . . . . . . . . . . . . . . Time . | . . . . . . . . . . . . . . . . . . . . . . . . . . . . . Total Robot Build Rating . | . . . . . . . . . . . . . . . . . . . . . . . . . . . . . Part Schematics Acquired 43 | . . . . . 13 2 . . 3 . . 3 . 2 . . . . 12 . . 4 . 4 . . . . Parts Built 11 | . . . . . . . . . . . . 1 . 5 . . . . 3 . . . . . 2 . . . Matter 2628 | . . . . . . . . . . . . 164 . 1023 . . . . 739 . . . . . 702 . . . Time 902 | . . . . . . . . . . . . 58 . 365 . . . . 355 . . . . . 124 . . . Total Part Build Rating 69 | . . . . . . . . . . . . 3 . 33 . . . . 19 . . . . . 14 . . . Parts Repaired 7 | . . . . 1 1 . . . . . . . 3 2 . . . . . . . . . . . . . . Time 456 | . . . . 32 53 . . . . . . . 196 119 . . . . 56 . . . . . . . . . Parts Recycled . | . . . . . . . . . . . . . . . . . . . . . . . . . . . . . Recycled Matter . | . . . . . . . . . . . . . . . . . . . . . . . . . . . . . Retrieved Matter . | . . . . . . . . . . . . . . . . . . . . . . . . . . . . . Retrieved Components . | . . . . . . . . . . . . . . . . . . . . . . . . . . . . . Parts Scanalyzed 9 | . . . . . 7 . . . . . . 1 . . . . . . 1 . . . . . . . . . Part Schematics Acquired 9 | . . . . . 7 . . . . . . 1 . . . . . . 1 . . . . . . . . . Parts Damaged 1 | . . . . . 1 . . . . . . . . . . . . . . . . . . . . . . . Bothacking | -11 -10 -10 -9 -9 -8 -7 -7 -7 -7 -7 -6 -6 -6 -5 -5 -5 -5 -4 -4 -4 -4 -4 -3 -3 -3 -2 -2 -1 ------------ Run | Scr Mat Min Mat Sto Mat Fac Low Low Zio Dee Pro Fac Ext Fac Upp Upp War Pro Fac Upp Upp Zhi Pro Res Tes Res Qua Acc Used RIF Installer . | . . . . . . . . . . . . . . . . . . . . . . . . . . . . . Robots Hacked . | . . . . . . . . . . . . . . . . . . . . . . . . . . . . . Non-combat . | . . . . . . . . . . . . . . . . . . . . . . . . . . . . . Combat . | . . . . . . . . . . . . . . . . . . . . . . . . . . . . . Robot Hacks Applied . | . . . . . . . . . . . . . . . . . . . . . . . . . . . . . Relay Couplers Released 2 | . . . . . . . . . . . . . . . . . . . . . . . . . . . . 2 Machine Destruction 2 | . . . . . . . . . . . . . . . . . . . . . . . . . . . . 2 Robots Rewired . | . . . . . . . . . . . . . . . . . . . . . . . . . . . . . Allies Hacked 1 | . . . . . . . . . . . . . . . . . . . . . . . . 1 . . . . Hacks Repelled 1 | . . . . . . . . . . . . . . . . . . . 1 . . . . . . . . . Allies | -11 -10 -10 -9 -9 -8 -7 -7 -7 -7 -7 -6 -6 -6 -5 -5 -5 -5 -4 -4 -4 -4 -4 -3 -3 -3 -2 -2 -1 -------- Run | Scr Mat Min Mat Sto Mat Fac Low Low Zio Dee Pro Fac Ext Fac Upp Upp War Pro Fac Upp Upp Zhi Pro Res Tes Res Qua Acc Total Allies 34 | . . . . 12 1 2 . . 2 . . 3 4 2 . . . . 2 . . . . 2 2 . 1 1 Largest Group 10 | . . . . 10 1 1 . . 2 2 . 1 3 3 . . . . 1 . . . . 1 2 . 1 1 Highest-Rated Group 219 | . . . . 88 10 26 . . 56 56 . 26 219 46 . . . . 26 . . . . 44 26 . 44 44 Highest-Rated Ally 156 | . . . . 31 10 26 . . 31 31 . 26 156 26 . . . . 26 . . . . 44 26 . 44 44 Total Orders 43 | . . . . . . 5 . . . . . 2 6 2 . . . . . . . . . 15 2 1 1 9 STAY 11 | . . . . . . 3 . . . . . 1 3 1 . . . . . . . . . . . . 1 2 ROAM 1 | . . . . . . . . . . . . . . . . . . . . . . . . . 1 . . . FOLLOW 9 | . . . . . . 2 . . . . . 1 3 1 . . . . . . . . . . . . . 2 RETURN 22 | . . . . . . . . . . . . . . . . . . . . . . . . 15 1 1 . 5 Ally Attacks 207 | . . . . 100 . . . . . 7 . . 100 . . . . . . . . . . . . . . . Total Damage 3674 | . . . . 1077 . . . . . 85 . . 2512 . . . . . . . . . . . . . . . Kills 36 | . . . . 12 . . . . . 2 . . 22 . . . . . . . . . . . . . . . Allies Corrupted 2 | . . . . . . . . . . . . . . . . . . . . . . . . 1 1 . . . Allies Melted . | . . . . . . . . . . . . . . . . . . . . . . . . . . . . . Intel | -11 -10 -10 -9 -9 -8 -7 -7 -7 -7 -7 -6 -6 -6 -5 -5 -5 -5 -4 -4 -4 -4 -4 -3 -3 -3 -2 -2 -1 ------- Run | Scr Mat Min Mat Sto Mat Fac Low Low Zio Dee Pro Fac Ext Fac Upp Upp War Pro Fac Upp Upp Zhi Pro Res Tes Res Qua Acc Robot Analysis Total 9 | . 1 . . . 1 1 . . . . . 1 . 1 . . . . . . . 4 . . . . . . Derelict Logs Recovered 12 | . . 2 . . . . 1 . 1 . 2 . . . 1 1 . 1 . 3 . . . . . . . . Drone Launches 36 | . . . . 14 . . . . . . . . . . . . . . . . . . . 15 1 1 . 5 Drone Recoveries 21 | . . . . . . . . . . . . . . . . . . . . . . . . 14 1 1 . 5 Exploration | -11 -10 -10 -9 -9 -8 -7 -7 -7 -7 -7 -6 -6 -6 -5 -5 -5 -5 -4 -4 -4 -4 -4 -3 -3 -3 -2 -2 -1 ------------- Run | Scr Mat Min Mat Sto Mat Fac Low Low Zio Dee Pro Fac Ext Fac Upp Upp War Pro Fac Upp Upp Zhi Pro Res Tes Res Qua Acc Turns Passed 23142 | 56 1950 1364 1209 1845 2625 1172 107 154 421 464 86 1154 1124 1119 113 70 276 402 989 166 134 63 157 1542 679 1647 282 1772 Spaces Moved 33656 | 58 736 683 395 632 1134 2413 362 467 1274 812 248 2545 1406 2595 383 244 569 474 1844 410 393 159 532 3759 1660 4195 562 2712 Core 54 | 22 . . . . . . . . . . . . . . . . . . . . . . . . . . . 32 Treads 3020 | . 287 535 395 632 1134 37 . . . . . . . . . . . . . . . . . . . . . . Legs . | . . . . . . . . . . . . . . . . . . . . . . . . . . . . . Wheels 633 | 36 449 148 . . . . . . . . . . . . . . . . . . . . . . . . . . Hover 19 | . . . . . . . . . . 19 . . . . . . . . . . . . . . . . . . Flight 29930 | . . . . . . 2376 362 467 1274 793 248 2545 1406 2595 383 244 569 474 1844 410 393 159 532 3759 1660 4195 562 2680 Fastest Speed 21 | 50 90 110 180 180 180 29 29 29 29 29 29 23 23 23 28 28 25 25 21 26 26 26 26 26 26 27 27 27 Average Speed 42 | 73 125 164 186 199 181 31 29 29 29 40 30 25 25 26 28 28 26 25 26 26 26 26 26 26 26 27 27 28 Slowest Speed 240 | 90 180 180 200 240 200 239 29 29 29 99 99 26 26 28 28 28 28 25 99 26 26 26 26 26 27 99 95 200 Overloaded Moves 37 | . . . . . . . . . . . . . . . . . . . 37 . . . . . . . . . Propulsion Burnouts . | . . . . . . . . . . . . . . . . . . . . . . . . . . . . . Robots Hopped 104 | . . . . . . 5 . 3 . . 1 7 22 9 . 1 . . 1 . . . . 9 14 6 6 20 Cave-ins Triggered . | . . . . . . . . . . . . . . . . . . . . . . . . . . . . . Exploration Rate (%) 62 | 3 97 99 33 80 87 53 51 64 82 79 45 61 96 53 63 48 68 55 35 56 59 60 66 64 95 77 49 36 Regions Visited 28 Branch Regions 18 Pre-discovered Areas 7 | . 1 1 . . . . . . . . . . . . 1 . . . . 1 . 3 . . . . . . Known Exits Taken 24 | . . . 1 . 1 1 1 1 1 1 1 1 1 1 1 1 1 1 1 1 1 1 1 1 1 1 1 . Unknown Exits Taken 4 | 1 1 1 . 1 . . . . . . . . . . . . . . . . . . . . . . . . Scrap Searched 21 | . . 2 . . . . 4 . 3 . 2 . . . 2 1 . 2 . 1 1 . 3 . . . . . Spaces Dug 386 | . 2 . 17 15 6 21 . . . . 3 24 1 41 . . . 1 43 1 . . . 85 39 20 6 61 Terrain Destroyed 1811 | . 6 . 26 118 201 26 . . . 22 3 35 46 53 . . . 1 148 80 39 . 47 282 39 273 34 332 Melee 255 | . 2 . . . . 6 . . . . 2 17 1 27 . . . 1 43 1 . . . 68 18 8 6 55 Projectile 139 | . . . 17 29 18 20 . . . . 1 18 1 26 . . . . . . . . . . . 1 . 8 AOE 1417 | . 4 . 9 89 183 . . . . 22 . . 44 . . . . . 105 79 39 . 47 214 21 264 28 269 Terrain Rammed . | . . . . . . . . . . . . . . . . . . . . . . . . . . . . . Walls Destroyed . | . . . . . . . . . . . . . . . . . . . . . . . . . . . . . Machines Disabled . | . . . . . . . . . . . . . . . . . . . . . . . . . . . . . Actions | -11 -10 -10 -9 -9 -8 -7 -7 -7 -7 -7 -6 -6 -6 -5 -5 -5 -5 -4 -4 -4 -4 -4 -3 -3 -3 -2 -2 -1 --------- Run | Scr Mat Min Mat Sto Mat Fac Low Low Zio Dee Pro Fac Ext Fac Upp Upp War Pro Fac Upp Upp Zhi Pro Res Tes Res Qua Acc Total 40239 | 69 1620 854 708 1006 1499 2696 362 481 1324 907 252 2953 2050 2918 387 243 692 744 2216 452 406 173 543 4111 1833 4610 662 3468 Wait 4470 | . 760 84 172 159 135 126 . 18 47 34 . 291 563 201 4 . 90 261 256 31 3 . 6 183 125 297 78 546 Move 33435 | 57 735 682 394 631 1133 2402 361 460 1273 811 245 2531 1369 2579 382 241 568 473 1841 409 392 158 531 3742 1631 4184 549 2671 Hop 88 | . . . . . . 5 . 3 . . 1 6 14 6 . 1 . . 1 . . . . 7 14 4 6 20 Pick Up 220 | 5 19 15 13 18 31 7 . . . 5 . 10 5 15 . . 6 . 8 . . 5 . 14 10 18 2 14 Fast Attach 50 | 6 1 . 1 5 1 1 . . 2 5 . 10 . 5 . . 4 1 1 . . . . 2 . 4 1 . Attach 129 | . 6 4 5 7 8 8 . . . 6 1 6 4 6 . . 4 . 11 1 . 2 1 9 1 5 . 34 Detach 53 | . 1 . . . 1 1 . . . 6 1 2 1 1 . . 2 . 4 . . 1 . 2 . 1 1 28 Swap 282 | . 15 18 25 30 37 21 1 . . 6 1 13 10 16 1 1 7 . 9 . . . . 15 16 20 8 12 Drop 227 | 1 1 11 18 24 27 28 . . 2 5 . 15 1 15 . . 10 1 7 . . 3 . 13 9 19 2 15 Fire 755 | . 78 40 80 120 126 72 . . . 7 1 24 57 26 . . . . 10 7 6 . 4 17 1 35 9 35 Melee 518 | . 4 . . . . 25 . . . 22 2 45 26 48 . . 1 8 68 4 5 4 1 107 26 23 6 93 Ram . | . . . . . . . . . . . . . . . . . . . . . . . . . . . . . Kick . | . . . . . . . . . . . . . . . . . . . . . . . . . . . . . Crush . | . . . . . . . . . . . . . . . . . . . . . . . . . . . . . Escape Stasis 4 | . . . . 4 . . . . . . . . . . . . . . . . . . . . . . . . Rewire 1 | . . . . 1 . . . . . . . . . . . . . . . . . . . . . . . . Trap . | . . . . . . . . . . . . . . . . . . . . . . . . . . . . . Miscellaneous 7 | . . . . 7 . . . . . . . . . . . . . . . . . . . . . . . . Route ------- -11/Scrapyard -10/Materials (discovered 4 exits: *Mat x3 / [*Min]) -10/Mines (discovered 2 exits: *Mat x2) -9/Materials (discovered 4 exits: *Mat / Min / *Sto x2) -9/Storage -8/Materials (discovered 3 exits: *Fac x3) -7/Factory (discovered 4 exits: *Fac x2 / *Low x2) -7/Lower Caves -7/Lower Caves -7/Zion (discovered 2 exits: *Dee / *Pro) -7/Deep Caves -6/Proximity Caves -6/Factory (discovered 6 exits: *Fac x2 / *Low x2 / *Ext x2) -6/Extension (discovered 2 exits: *Fac / *Cet) -5/Factory (discovered 3 exits: *Fac / *Upp x2) -5/Upper Caves -5/Upper Caves (discovered 2 exits: *Fac / *War) -5/Warlord -4/Proximity Caves -4/Factory (discovered 2 exits: *Upp x2) -4/Upper Caves -4/Upper Caves (discovered 2 exits: *Res / *Zhi) -4/Zhirov -3/Proximity Caves -3/Research (discovered 4 exits: *Res / Arm / *Tes x2) -3/Testing -2/Research (discovered 4 exits: *Acc x3 / *Qua) -2/Quarantine -1/Access To Epsilon Eridani History --------- Turn | Location | Event 5 | -11/Scrapyard | Discovered new exit (range 16) 57 | -11/Scrapyard | Entered Materials 310 | -10/Materials | Build established: Mutant 1033 | -10/Materials | Discovered new exit (range 4) 1351 | -10/Materials | Discovered new exit (range 16) 1577 | -10/Materials | Discovered new exit (range 12) 1902 | -10/Materials | Discovered new exit (range 8) 2007 | -10/Materials | Entered Mines 2016 | -10/Mines | Core integrity fell below 50% 2387 | -10/Mines | Build established: Hauler-Mutant 2403 | -10/Mines | Learned Materials machine intel 2403 | -10/Mines | Joined a pair of Derelicts in attacking an 0b10 outpost 2537 | -10/Mines | Learned Materials trap positions 2571 | -10/Mines | Discovered new exit (range 15) 2716 | -10/Mines | Learned location of Storage (-9) 3222 | -10/Mines | Discovered new exit (range 10) 3230 | -10/Mines | Core integrity fell below 20% 3371 | -10/Mines | Entered Materials 3371 | -9/Materials | Evolved 2 slots: Utility x2 3372 | -9/Materials | Loaded intel: 15 trap records 3373 | -9/Materials | Loaded intel: 54 machine locations 4204 | -9/Materials | Build established: Scavenger-Mutant 4257 | -9/Materials | Identified exit to Mines 4257 | -9/Materials | Identified exit to Storage 4314 | -9/Materials | Discovered new exit (range 9) 4580 | -9/Materials | Entered Storage 4875 | -9/Storage | Core integrity fell below 50% 5094 | -9/Storage | Assisted by bots powering up and referring to "LRC-V3" 5302 | -9/Storage | Lost 4 parts (1n2u1w) 5307 | -9/Storage | Destroyed 10 combat bots 5436 | -9/Storage | Discovered new exit (range 16) 5513 | -9/Storage | Repaired Hrd. Light Armor Plating 5561 | -9/Storage | Build established: Hauler-Mutant 6136 | -9/Storage | Met a pair of Derelict thieves 6280 | -9/Storage | Core integrity fell below 20% 6314 | -9/Storage | Destroyed 8 combat bots 6425 | -9/Storage | Entered Materials 6425 | -8/Materials | Evolved 2 slots: Propulsion x1, Utility x1 7120 | -8/Materials | Discovered new exit (range 16) 7736 | -8/Materials | Identified exit to Factory 8825 | -8/Materials | First assault squad dispatched 8920 | -8/Materials | Destroyed 8 combat bots 9026 | -8/Materials | Repaired Broken Adv. Weight Redist. System 9050 | -8/Materials | Entered Factory 9050 | -7/Factory | Evolved 2 slots: Power x1, Utility x1 9213 | -7/Factory | Discovered new exit (range 9) 9413 | -7/Factory | Build established: Sprinter 9620 | -7/Factory | Garrison activated, responded to threat 9742 | -7/Factory | Identified exit to Lower Caves 9747 | -7/Factory | Discovered new exit (range 11) 9750 | -7/Factory | Identified exit to Factory 9820 | -7/Factory | Discovered exit to Factory (range 13) 9875 | -7/Factory | P-60 Hacker assimilated allied Technician 4a 10222 | -7/Factory | Entered Lower Caves 10223 | -7/Lower Caves | Identified exit to Lower Caves 10329 | -7/Lower Caves | Entered another Lower Caves area 10356 | -7/Lower Caves | Encountered a Warlord checkpoint 10443 | -7/Lower Caves | Discovered new exit (range 9) 10482 | -7/Lower Caves | Identified exit to Zion 10483 | -7/Lower Caves | Entered Zion 10490 | -7/Zion | Learned Factory stockpile data 10529 | -7/Zion | Discovered new exit (range 16) 10533 | -7/Zion | Identified exit to Proximity Caves 10543 | -7/Zion | System corruption cleaned by Quarantine Array 10602 | -7/Zion | Acquired unknown access codes intercepted by a Zionite 10703 | -7/Zion | Gained Derelict followers 10849 | -7/Zion | Opened final containment barrier to the Deep Caves 10853 | -7/Zion | Discovered new exit (range 5) 10854 | -7/Zion | Saw the warning signs outside the Deep Caves entrance 10856 | -7/Zion | Identified exit to Deep Caves 10904 | -7/Zion | Entered Deep Caves 10904 | -7/Deep Caves | Accompanied by 2 allies 11016 | -7/Deep Caves | Attacked by Z-Imprinter 11032 | -7/Deep Caves | Core integrity fell below 50% 11043 | -7/Deep Caves | Destroyed Z-Imprinter 11051 | -7/Deep Caves | Core integrity fell below 20% 11058 | -7/Deep Caves | Found Prototype Protection 11059 | -7/Deep Caves | Identified Zio. Weapon Casing 11071 | -7/Deep Caves | Lost 6 parts (2p1n2u1w) 11242 | -7/Deep Caves | Z-Facility disabled 11366 | -7/Deep Caves | Discovered new exit (range 6) 11367 | -7/Deep Caves | Identified exit to Proximity Caves 11368 | -7/Deep Caves | Entered Proximity Caves 11369 | -6/Proximity Caves | Learned location of 1 exit from Factory 11421 | -6/Proximity Caves | Spotted B-75 Beast 11454 | -6/Proximity Caves | Entered Factory 11454 | -6/Factory | Evolved 2 slots: Propulsion x2 11455 | -6/Factory | Identified exit to Lower Caves 11575 | -6/Factory | Build established: Hacker-Sprinter 11740 | -6/Factory | Mak. Hacking Suite fried by hacking feedback 11794 | -6/Factory | Discovered new exit (range 11) 11797 | -6/Factory | Identified exit to Factory 11918 | -6/Factory | Fabricated Imp. VTOL Module (x1) 11972 | -6/Factory | Spotted B-75 Beast 11973 | -6/Factory | Identified exit to Extension 11997 | -6/Factory | Found Prototype Processor 11997 | -6/Factory | Identified Exp. Terrain Scan Processor 12037 | -6/Factory | Discovered exit to Factory (range 11) 12608 | -6/Factory | Entered Extension 12608 | -6/Extension | Accompanied by 1 ally 12632 | -6/Extension | Rescued A7 12747 | -6/Extension | Rescued a captive Derelict 12958 | -6/Extension | Disrupted transfer network 13076 | -6/Extension | Spotted B-75 Beast 13141 | -6/Extension | Allies destroyed B-75 Beast 13150 | -6/Extension | Spotted B-75 Beast 13178 | -6/Extension | Allies destroyed B-75 Beast 13308 | -6/Extension | First assault squad dispatched 13336 | -6/Extension | Rescued a captive Derelict 13495 | -6/Extension | Repaired Broken Imp. VTOL Module 13557 | -6/Extension | Repaired Imp. VTOL Module 13619 | -6/Extension | Repaired Imp. VTOL Module 13639 | -6/Extension | Discovered exit to Factory (range 10) 13639 | -6/Extension | Discovered new exit (range 6) 13641 | -6/Extension | Identified exit to Cetus 13725 | -6/Extension | Destroyed A7 13728 | -6/Extension | Extracted ID and sensor layout for unrecognized location from A7's data core 13732 | -6/Extension | Entered Factory 13732 | -5/Factory | Accompanied by 2 allies 13732 | -5/Factory | Evolved 2 slots: Utility x2 13954 | -5/Factory | Identified exit to Upper Caves 14050 | -5/Factory | Fabricated Adv. Reaction Control System? 14075 | -5/Factory | Discovered new exit (range 13) 14083 | -5/Factory | Central database locked down 14229 | -5/Factory | Fabricated Exp. Sensor Array (x1) 14421 | -5/Factory | Fabricated Imp. Force Field? 14521 | -5/Factory | Fabricated Gravity Neutralizing Apparatus? 14605 | -5/Factory | Found Exp. Signal Interpreter 14690 | -5/Factory | Repaired Adv. Power Amplifier? 14760 | -5/Factory | Repaired Imp. VTOL Module? 14822 | -5/Factory | Local fabrication network quarantined 14851 | -5/Factory | Entered Upper Caves 14856 | -5/Upper Caves | Encountered a Warlord checkpoint 14891 | -5/Upper Caves | Learned location of Armory (-3) 14961 | -5/Upper Caves | Discovered new exit (range 8) 14962 | -5/Upper Caves | Identified exit to Upper Caves 14964 | -5/Upper Caves | Entered another Upper Caves area 14966 | -5/Upper Caves | Discovered new exit (range 15) 14974 | -5/Upper Caves | Learned Factory terminal intel 14983 | -5/Upper Caves | Identified exit to Factory 15032 | -5/Upper Caves | Discovered new exit (range 7) 15034 | -5/Upper Caves | Identified exit to Warlord 15034 | -5/Upper Caves | Entered Warlord 15050 | -5/Warlord | Discovered new exit (range 9) 15052 | -5/Warlord | Identified exit to Proximity Caves 15074 | -5/Warlord | Received a Watcher feed algorithm from an ecstatic Tinkerer 15088 | -5/Warlord | Visited the Vortex Lab 15090 | -5/Warlord | Found Prototype Piercing Weapon 15091 | -5/Warlord | Identified Vortex Lance 15104 | -5/Warlord | Warlord's base attacked by MAIN.C 15116 | -5/Warlord | Met Warlord 15130 | -5/Warlord | Found Prototype Reactor 15130 | -5/Warlord | Identified Vortex Chain Reactor 15138 | -5/Warlord | Found Prototype Device 15139 | -5/Warlord | Identified Thermal Barrier 15140 | -5/Warlord | Found Prototype Processor 15140 | -5/Warlord | Identified Exp. Target Analyzer 15144 | -5/Warlord | Found Prototype Hackware 15170 | -5/Warlord | Found Prototype Device 15170 | -5/Warlord | Identified Minesniffer Drone Bay 15202 | -5/Warlord | Opened side exit 15310 | -5/Warlord | Entered Proximity Caves 15349 | -4/Proximity Caves | Learned Research terminal intel 15538 | -4/Proximity Caves | Received a Behemoth hack from an annoying Tinkerer 15711 | -4/Proximity Caves | Discovered exit to Factory (range 5) 15712 | -4/Proximity Caves | Entered Factory 15712 | -4/Factory | Evolved 2 slots: Propulsion x1, Utility x1 15713 | -4/Factory | Loaded intel: 20 terminal locations 15713 | -4/Factory | Identified System Mapper 15720 | -4/Factory | Identified exit to Upper Caves 16012 | -4/Factory | Build established: Wizard-Sprinter 16155 | -4/Factory | Central database locked down 16227 | -4/Factory | System Mapper fried by hacking feedback 16338 | -4/Factory | Fabricated Mni. Smartbomb Launcher? 16452 | -4/Factory | Fabricated Imp. Fusion Compressor? 16468 | -4/Factory | Spotted B-86 Titan 16477 | -4/Factory | Fabricated Exp. Cesium-ion Thruster? 16502 | -4/Factory | Local fabrication network quarantined 16525 | -4/Factory | Build established: Hacker-Sprinter 16701 | -4/Factory | Entered Upper Caves 16750 | -4/Upper Caves | Learned Research garrison access intel 16758 | -4/Upper Caves | Learned Research stockpile data 16772 | -4/Upper Caves | Encountered a Warlord checkpoint 16790 | -4/Upper Caves | Learned Research terminal intel 16799 | -4/Upper Caves | Discovered new exit (range 15) 16859 | -4/Upper Caves | Identified exit to Upper Caves 16867 | -4/Upper Caves | Entered another Upper Caves area 16867 | -4/Upper Caves | Discovered new exit (range 10) 16870 | -4/Upper Caves | Identified exit to Research 17000 | -4/Upper Caves | Discovered new exit (range 4) 17000 | -4/Upper Caves | Identified exit to Zhirov 17001 | -4/Upper Caves | Entered Zhirov 17001 | -4/Zhirov | Discovered new exit (range 3) 17007 | -4/Zhirov | Met Zhirov 17015 | -4/Zhirov | Learned location of Quarantine (-2) 17015 | -4/Zhirov | Learned location of Testing (-3) 17015 | -4/Zhirov | Learned location of Command (-1) 17018 | -4/Zhirov | Zhirov requested help retrieving the SGEMP Prototype 17023 | -4/Zhirov | Found Alien Artifact 17024 | -4/Zhirov | Identified Integrated Reactor 17024 | -4/Zhirov | Installed Integrated Reactor, increased core energy generation (+10) 17030 | -4/Zhirov | Found Alien Artifact 17063 | -4/Zhirov | Identified exit to Proximity Caves 17064 | -4/Zhirov | Entered Proximity Caves 17194 | -3/Proximity Caves | Discovered exit to Research (range 6) 17221 | -3/Proximity Caves | Entered Research 17221 | -3/Research | Evolved 2 slots: Utility x2 17222 | -3/Research | Identified exit to Armory 17224 | -3/Research | Loaded intel: 18 terminal locations 17225 | -3/Research | Loaded intel: 4 garrison access locations 17707 | -3/Research | Found Prototype Device 17724 | -3/Research | Identified Exp. Focal Shield 17971 | -3/Research | First assault squad dispatched 18114 | -3/Research | Found Powered Armor 18273 | -3/Research | Identified exit to Testing 18365 | -3/Research | Discovered new exit (range 5) 18366 | -3/Research | Identified exit to Research 18651 | -3/Research | Spotted B-86 Titan 18763 | -3/Research | Entered Testing 18782 | -3/Testing | Spotted PD-0SFOHIP3IQ 18886 | -3/Testing | Protovariant out of control (PD-0SFOHIP3IQ) 18886 | -3/Testing | Unleashed a protovariant (PD-0SFOHIP3IQ) 18923 | -3/Testing | Spotted Investigator 18971 | -3/Testing | Discovered exit to Research (range 5) 19009 | -3/Testing | Found Prototype Device 19015 | -3/Testing | Identified Exp. Transmission Jammer 19040 | -3/Testing | Found Prototype Device 19047 | -3/Testing | Identified Exp. Thermal Defense Suite 19052 | -3/Testing | Fabricated Inertial Stasis Machine? 19087 | -3/Testing | Found Mni. Smartbomb Launcher 19121 | -3/Testing | Fabricated Inertial Stasis Machine (x1) 19211 | -3/Testing | Found Prototype Energy Cannon 19282 | -3/Testing | Found Prototype Device 19336 | -3/Testing | Identified Null Cannon 19442 | -3/Testing | Entered Research 19442 | -2/Research | Warlord forces began assault on 0b10 19442 | -2/Research | Evolved 2 slots: Utility x2 19443 | -2/Research | Loaded intel: 18 terminal locations 19552 | -2/Research | Research machine network offline 19556 | -2/Research | Identified Exp. Thermal Shield 19855 | -2/Research | Found Vortex Chain Reactor 19952 | -2/Research | Destroyed B-90 Cyclops 19952 | -2/Research | Spotted Striker 19955 | -2/Research | Spotted Striker 19965 | -2/Research | Destroyed Striker 20180 | -2/Research | Found Enh. Force Lance 20204 | -2/Research | Borebot progress halted 20314 | -2/Research | Borebot progress halted 20478 | -2/Research | Met up with Warlord 20479 | -2/Research | Warlord invited to help at Command 20485 | -2/Research | Discovered new exit (range 12) 20488 | -2/Research | Identified exit to Access 20592 | -2/Research | Spotted Striker 20592 | -2/Research | Spotted Striker 20594 | -2/Research | Destroyed Striker 20596 | -2/Research | Destroyed Striker 20598 | -2/Research | Destroyed Striker 20710 | -2/Research | Discovered exit to Access (range 4) 20794 | -2/Research | Discovered exit to Access (range 11) 20833 | -2/Research | Found Prototype Processor 20835 | -2/Research | Found Prototype Device 20837 | -2/Research | Identified Exp. Core Analyzer 20853 | -2/Research | Identified Adv. Kinecellerator 20910 | -2/Research | Discovered new exit (range 8) 20912 | -2/Research | Identified exit to Quarantine 21089 | -2/Research | Entered Quarantine 21170 | -2/Quarantine | Garrison activated, responded to threat 21300 | -2/Quarantine | Discovered exit to Access (range 3) 21314 | -2/Quarantine | Found Alien Artifact 21314 | -2/Quarantine | Identified Phase Redirector 21322 | -2/Quarantine | Spotted Alpha 7 21343 | -2/Quarantine | Scanned by Researcher 21369 | -2/Quarantine | Found Alien Slashing Weapon 21371 | -2/Quarantine | Entered Access 21371 | -1/Access | Evolved 2 slots: Utility x2 21373 | -1/Access | Identified Sigix Broadsword 22121 | -1/Access | First assault squad dispatched 22478 | -1/Access | Spotted B-99 Colossus 23045 | -1/Access | Spotted B-99 Colossus 23049 | -1/Access | Spotted B-99 Colossus 23140 | -1/Access | Discovered new exit (range 4) 23143 | -1/Access | Identified exit to Surface 23143 | *** | Escaped! Last Messages --------------- 23097_ E> SKW%JSIJZWF>XRJGVK53F&=D9 TUS 23099_ U-05 Engineer builds a Wall. 23099_ Slug penetrates Wall. 23099_ Slug penetrates G-73 Enforcer. 23099_ Slug penetrates Wall. 23101_ G-73 Enforcer suffers critical hit. 23101_ Slug penetrates Wall. 23110_ Destroyed Imp. Antigrav System. 23117_ Powered Armor destroyed. 23119_ P-80 Master suffers critical hit. 23119_ Destroyed Imp. Antigrav System. 23120_ Adv. Phase Shifter destroyed. 23121_ ALERT: Significant disruption in Zone 3G, assault force dispatched. 23122_ P-80 Master suffers critical hit. 23122_ P-80 Master destroyed. 23125_ Acquired 62 matter. 23133_ VKSP|K3OEM#,XTPH